[Event "Titled Tuesday Blitz October 12 2021"]
[White "King, Alexander"]
[Black "Begmuratov, Khumoyun"]
[WhiteFideId "2063620"]
[BlackFideId "14210207"]
[WhiteElo "2306"]
[BlackElo "1948"]
[Result "1-0"]
[Round "07"]
[TimeControl "180+1"]
[Date "2021.10.12"]
[WhiteClock "0:00:12"]
[BlackClock "0:00:19"]

1. d4 {[%clk 0:03:00]}  Nf6 {[%clk 0:02:59]} 2. c4 {[%clk 0:03:01]}  g6 {[%clk 0:02:59]} 3. Nc3 {[%clk 0:03:01]}  Bg7 {[%clk 0:03:00]} 4. e4 {[%clk 0:03:02]}  d6 {[%clk 0:03:01]} 5. Nge2 {[%clk 0:03:02]}  O-O {[%clk 0:03:02]} 6. f3 {[%clk 0:03:03]}  c5 {[%clk 0:03:02]} 7. d5 {[%clk 0:03:03]}  a6 {[%clk 0:03:02]} 8. a4 {[%clk 0:03:03]}  Nbd7 {[%clk 0:03:02]} 9. Ng3 {[%clk 0:03:03]}  h5 {[%clk 0:03:01]} 10. Be2 {[%clk 0:03:03]}  e5 {[%clk 0:03:01]} 11. Bg5 {[%clk 0:02:56]}  Qe8 {[%clk 0:02:56]} 12. O-O {[%clk 0:02:39]}  Nh7 {[%clk 0:02:56]} 13. Be3 {[%clk 0:02:32]}  f5 {[%clk 0:02:54]} 14. exf5 {[%clk 0:02:33]}  gxf5 {[%clk 0:02:55]} 15. f4 {[%clk 0:02:33]}  h4 {[%clk 0:02:46]} 16. Nh5 {[%clk 0:02:27]}  Bh6 {[%clk 0:02:46]} 17. Qd2 {[%clk 0:02:23]}  e4 {[%clk 0:02:43]} 18. Bf2 {[%clk 0:02:06]}  Qe7 {[%clk 0:02:29]} 19. Qe1 {[%clk 0:02:06]}  h3 {[%clk 0:02:19]} 20. gxh3 {[%clk 0:02:02]}  Ndf6 {[%clk 0:02:18]} 21. Bh4 {[%clk 0:01:52]}  Qf7 {[%clk 0:02:05]} 22. Ng3 {[%clk 0:01:36]}  Bd7 {[%clk 0:02:00]} 23. Nd1 {[%clk 0:01:35]}  Ne8 {[%clk 0:01:50]} 24. Ne3 {[%clk 0:01:33]}  Ng7 {[%clk 0:01:50]} 25. a5 {[%clk 0:01:18]}  Rfe8 {[%clk 0:01:49]} 26. b4 {[%clk 0:01:15]}  Rac8 {[%clk 0:01:46]} 27. Rb1 {[%clk 0:01:12]}  Nf8 {[%clk 0:01:21]} 28. bxc5 {[%clk 0:00:34]}  Rxc5 {[%clk 0:01:22]} 29. Rxb7 {[%clk 0:00:34]}  Rcc8 {[%clk 0:01:22]} 30. Qb4 {[%clk 0:00:31]}  Qg6 {[%clk 0:01:15]} 31. Rb6 {[%clk 0:00:27]}  Qh7 {[%clk 0:01:09]} 32. Qxd6 {[%clk 0:00:24]}  Bxf4 {[%clk 0:00:56]} 33. Rxf4 {[%clk 0:00:23]}  Ba4 {[%clk 0:00:56]} 34. Qh6 {[%clk 0:00:19]}  Qxh6 {[%clk 0:00:55]} 35. Rxh6 {[%clk 0:00:20]}  Rb8 {[%clk 0:00:48]} 36. Rxa6 {[%clk 0:00:18]}  Bd7 {[%clk 0:00:45]} 37. Bf6 {[%clk 0:00:17]}  Ng6 {[%clk 0:00:44]} 38. Rxf5 {[%clk 0:00:10]}  Nxf5 {[%clk 0:00:43]} 39. Ngxf5 {[%clk 0:00:11]}  Nf4 {[%clk 0:00:38]} 40. Bg4 {[%clk 0:00:09]}  Nd3 {[%clk 0:00:32]} 41. Kg2 {[%clk 0:00:09]}  Kf7 {[%clk 0:00:29]} 42. Bd4 {[%clk 0:00:08]}  Bxf5 {[%clk 0:00:20]} 43. Nxf5 {[%clk 0:00:08]}  Nf4+ {[%clk 0:00:21]} 44. Kg3 {[%clk 0:00:08]}  Nd3 {[%clk 0:00:17]} 45. Rf6+ {[%clk 0:00:07]}  Kg8 {[%clk 0:00:17]} 46. Rg6+ {[%clk 0:00:07]}  Kf7 {[%clk 0:00:17]} 47. Bh5 {[%clk 0:00:05]}  Rg8 {[%clk 0:00:15]} 48. Nh6+ {[%clk 0:00:06]}  Ke7 {[%clk 0:00:14]} 49. Nxg8+ {[%clk 0:00:07]}  Kd7 {[%clk 0:00:15]} 50. c5 {[%clk 0:00:07]}  Rb3 {[%clk 0:00:14]} 51. c6+ {[%clk 0:00:08]}  Kc7 {[%clk 0:00:14]} 52. Bb6+ {[%clk 0:00:07]}  Kb8 {[%clk 0:00:12]} 53. Kg4 {[%clk 0:00:06]}  Ne5+ {[%clk 0:00:12]} 54. Kf5 {[%clk 0:00:06]}  Nxg6 {[%clk 0:00:12]} 55. Kxg6 {[%clk 0:00:06]}  e3 {[%clk 0:00:13]} 56. Bxe3 {[%clk 0:00:06]}  Rxe3 {[%clk 0:00:13]} 57. Nf6 {[%clk 0:00:07]}  Kc7 {[%clk 0:00:12]} 58. Bg4 {[%clk 0:00:08]}  Ra3 {[%clk 0:00:12]} 59. Be6 {[%clk 0:00:09]}  Rxa5 {[%clk 0:00:12]} 60. h4 {[%clk 0:00:09]}  Ra2 {[%clk 0:00:11]} 61. h5 {[%clk 0:00:10]}  Rg2+ {[%clk 0:00:12]} 62. Ng4 {[%clk 0:00:10]}  Kd6 {[%clk 0:00:12]} 63. h6 {[%clk 0:00:11]}  Ra2 {[%clk 0:00:12]} 64. h7 {[%clk 0:00:11]}  Ra8 {[%clk 0:00:13]} 65. Bg8 {[%clk 0:00:12]}  Ra4 {[%clk 0:00:12]} 66. Nf6 {[%clk 0:00:12]}  Rh4 {[%clk 0:00:12]} 67. Nh5 {[%clk 0:00:12]}  Rg4+ {[%clk 0:00:12]} 68. Kh6 {[%clk 0:00:13]}  Rg2 {[%clk 0:00:12]} 69. h8=Q {[%clk 0:00:13]}  Rxh2 {[%clk 0:00:13]} 70. Qf6+ {[%clk 0:00:13]}  Kc5 {[%clk 0:00:14]} 71. Qc3+ {[%clk 0:00:12]}  Kd6 {[%clk 0:00:15]} 72. Qg3+ {[%clk 0:00:13]}  Kc5 {[%clk 0:00:14]} 73. Qxh2 {[%clk 0:00:13]}  Kb6 {[%clk 0:00:15]} 74. Qd6 {[%clk 0:00:13]}  Kb5 {[%clk 0:00:15]} 75. c7 {[%clk 0:00:12]}  Kc4 {[%clk 0:00:16]} 76. c8=Q+ {[%clk 0:00:12]}  Kd3 {[%clk 0:00:17]} 77. Qg3+ {[%clk 0:00:12]}  Ke2 {[%clk 0:00:18]} 78. Qe6+ {[%clk 0:00:13]}  Kf1 {[%clk 0:00:19]} 79. Qee1# {[%clk 0:00:12]} 1-0


[Site "https://www.chess.com"]

[Event "Titled Tuesday Blitz October 12 2021"]
[White "Koksik_13"]
[Black "Ismagilov, Damir"]
[BlackFideId "34199982"]
[WhiteElo "2715"]
[BlackElo "2034"]
[Result "1-0"]
[Round "07"]
[TimeControl "180+1"]
[Date "2021.10.12"]
[WhiteClock "0:01:29"]
[BlackClock "0:00:07"]

1. d4 {[%clk 0:02:47]}  d5 {[%clk 0:02:50]} 2. Nc3 {[%clk 0:02:46]}  Nf6 {[%clk 0:02:46]} 3. Bf4 {[%clk 0:02:46]}  c5 {[%clk 0:02:43]} 4. e3 {[%clk 0:02:46]}  a6 {[%clk 0:02:42]} 5. Nf3 {[%clk 0:02:46]}  Nc6 {[%clk 0:02:39]} 6. Ne5 {[%clk 0:02:46]}  e6 {[%clk 0:02:36]} 7. Nxc6 {[%clk 0:02:46]}  bxc6 {[%clk 0:02:35]} 8. Be2 {[%clk 0:02:47]}  Bd6 {[%clk 0:02:34]} 9. Bg3 {[%clk 0:02:47]}  O-O {[%clk 0:02:33]} 10. O-O {[%clk 0:02:47]}  Bxg3 {[%clk 0:02:32]} 11. hxg3 {[%clk 0:02:46]}  cxd4 {[%clk 0:02:33]} 12. exd4 {[%clk 0:02:45]}  Qd6 {[%clk 0:02:32]} 13. Na4 {[%clk 0:02:45]}  e5 {[%clk 0:02:32]} 14. dxe5 {[%clk 0:02:45]}  Qxe5 {[%clk 0:02:33]} 15. c3 {[%clk 0:02:43]}  Qd6 {[%clk 0:02:32]} 16. Qd4 {[%clk 0:02:42]}  Nd7 {[%clk 0:02:27]} 17. Rad1 {[%clk 0:02:41]}  Bb7 {[%clk 0:02:25]} 18. b4 {[%clk 0:02:39]}  Rae8 {[%clk 0:02:14]} 19. Bf3 {[%clk 0:02:38]}  Ne5 {[%clk 0:02:14]} 20. c4 {[%clk 0:02:35]}  Qxb4 {[%clk 0:01:56]} 21. Nc5 {[%clk 0:02:35]}  Bc8 {[%clk 0:01:50]} 22. cxd5 {[%clk 0:02:34]}  Qxd4 {[%clk 0:01:41]} 23. Rxd4 {[%clk 0:02:34]}  Nxf3+ {[%clk 0:01:38]} 24. gxf3 {[%clk 0:02:35]}  cxd5 {[%clk 0:01:39]} 25. Rxd5 {[%clk 0:02:36]}  Re2 {[%clk 0:01:35]} 26. a4 {[%clk 0:02:36]}  Be6 {[%clk 0:01:33]} 27. Rd6 {[%clk 0:02:32]}  Bc8 {[%clk 0:01:01]} 28. Nxa6 {[%clk 0:02:30]}  Bb7 {[%clk 0:00:54]} 29. Kg2 {[%clk 0:02:26]}  g5 {[%clk 0:00:55]} 30. Nc5 {[%clk 0:02:25]}  Ba8 {[%clk 0:00:54]} 31. g4 {[%clk 0:02:23]}  h5 {[%clk 0:00:53]} 32. Nd7 {[%clk 0:02:18]}  Rc8 {[%clk 0:00:27]} 33. Nf6+ {[%clk 0:02:17]}  Kf8 {[%clk 0:00:28]} 34. Nxh5 {[%clk 0:02:18]}  Ke7 {[%clk 0:00:28]} 35. Rd3 {[%clk 0:02:17]}  Rcc2 {[%clk 0:00:26]} 36. Kg3 {[%clk 0:02:15]}  Bc6 {[%clk 0:00:24]} 37. a5 {[%clk 0:02:14]}  Bb5 {[%clk 0:00:24]} 38. Rb3 {[%clk 0:02:09]}  Bc4 {[%clk 0:00:24]} 39. Rb4 {[%clk 0:02:06]}  Red2 {[%clk 0:00:20]} 40. Re1+ {[%clk 0:02:06]}  Kd8 {[%clk 0:00:17]} 41. Re4 {[%clk 0:01:59]}  Rxf2 {[%clk 0:00:16]} 42. Rd4+ {[%clk 0:01:42]}  Ke7 {[%clk 0:00:15]} 43. f4 {[%clk 0:01:42]}  Rg2+ {[%clk 0:00:12]} 44. Kf3 {[%clk 0:01:42]}  Rgf2+ {[%clk 0:00:11]} 45. Ke4 {[%clk 0:01:40]}  Be6 {[%clk 0:00:11]} 46. Rb7+ {[%clk 0:01:39]}  Ke8 {[%clk 0:00:11]} 47. Ke5 {[%clk 0:01:30]}  gxf4 {[%clk 0:00:10]} 48. Kf6 {[%clk 0:01:29]}  Rb2 {[%clk 0:00:08]} 49. Ng7+ {[%clk 0:01:29]}  Kf8 {[%clk 0:00:07]} 50. Rd8# {[%clk 0:01:29]} 1-0


[Site "https://www.chess.com"]

[Event "Titled Tuesday Blitz October 12 2021"]
[White "Maksimovic, Bojan"]
[Black "Stoleriu, George"]
[WhiteFideId "14408120"]
[BlackFideId "1227505"]
[WhiteElo "2439"]
[BlackElo "2199"]
[Result "0-1"]
[Round "07"]
[TimeControl "180+1"]
[Date "2021.10.12"]
[WhiteClock "0:00:03"]
[BlackClock "0:00:32"]

1. e4 {[%clk 0:03:00]}  e6 {[%clk 0:02:59]} 2. d4 {[%clk 0:03:00]}  d5 {[%clk 0:03:00]} 3. Nc3 {[%clk 0:03:01]}  Bb4 {[%clk 0:02:59]} 4. e5 {[%clk 0:03:01]}  c5 {[%clk 0:03:00]} 5. a3 {[%clk 0:03:01]}  Bxc3+ {[%clk 0:03:01]} 6. bxc3 {[%clk 0:03:02]}  Qc7 {[%clk 0:03:01]} 7. Nf3 {[%clk 0:02:59]}  Ne7 {[%clk 0:03:00]} 8. a4 {[%clk 0:02:54]}  b6 {[%clk 0:03:00]} 9. Bb5+ {[%clk 0:02:50]}  Bd7 {[%clk 0:03:01]} 10. Bd3 {[%clk 0:02:47]}  Nbc6 {[%clk 0:03:01]} 11. O-O {[%clk 0:02:28]}  Na5 {[%clk 0:02:59]} 12. Qd2 {[%clk 0:02:24]}  h6 {[%clk 0:02:58]} 13. h4 {[%clk 0:02:19]}  Nc4 {[%clk 0:02:55]} 14. Qf4 {[%clk 0:02:18]}  Nc6 {[%clk 0:02:45]} 15. h5 {[%clk 0:02:10]}  N6a5 {[%clk 0:02:38]} 16. Qg4 {[%clk 0:02:07]}  O-O-O {[%clk 0:02:26]} 17. Qxg7 {[%clk 0:01:51]}  Rdg8 {[%clk 0:02:21]} 18. Qf6 {[%clk 0:01:46]}  Qd8 {[%clk 0:02:08]} 19. Qxd8+ {[%clk 0:01:42]}  Kxd8 {[%clk 0:02:09]} 20. g3 {[%clk 0:01:40]}  Kc7 {[%clk 0:02:01]} 21. Kg2 {[%clk 0:01:39]}  Nc6 {[%clk 0:01:50]} 22. Rh1 {[%clk 0:01:35]}  cxd4 {[%clk 0:01:46]} 23. cxd4 {[%clk 0:01:33]}  Nb4 {[%clk 0:01:46]} 24. Ba3 {[%clk 0:01:01]}  Nxd3 {[%clk 0:01:16]} 25. cxd3 {[%clk 0:01:02]}  Nxa3 {[%clk 0:01:17]} 26. Rxa3 {[%clk 0:01:03]}  Kb7 {[%clk 0:01:18]} 27. Rc1 {[%clk 0:00:53]}  Rc8 {[%clk 0:01:17]} 28. Rxc8 {[%clk 0:00:53]}  Rxc8 {[%clk 0:01:18]} 29. Nh2 {[%clk 0:00:53]}  a5 {[%clk 0:01:12]} 30. Ng4 {[%clk 0:00:53]}  Rh8 {[%clk 0:01:12]} 31. f4 {[%clk 0:00:49]}  Ka6 {[%clk 0:01:11]} 32. Nf6 {[%clk 0:00:39]}  Bc6 {[%clk 0:01:08]} 33. Kf3 {[%clk 0:00:35]}  b5 {[%clk 0:01:08]} 34. axb5+ {[%clk 0:00:36]}  Bxb5 {[%clk 0:01:06]} 35. Ke3 {[%clk 0:00:32]}  a4 {[%clk 0:01:06]} 36. Kd2 {[%clk 0:00:32]}  Ka5 {[%clk 0:01:07]} 37. Ra1 {[%clk 0:00:32]}  Kb4 {[%clk 0:00:59]} 38. Rb1+ {[%clk 0:00:33]}  Ka5 {[%clk 0:01:00]} 39. Kc3 {[%clk 0:00:23]}  Rc8+ {[%clk 0:00:55]} 40. Kb2 {[%clk 0:00:23]}  Bxd3 {[%clk 0:00:55]} 41. Rd1 {[%clk 0:00:18]}  Rc2+ {[%clk 0:00:41]} 42. Ka1 {[%clk 0:00:14]}  Be2 {[%clk 0:00:36]} 43. Rb1 {[%clk 0:00:13]}  Bc4 {[%clk 0:00:33]} 44. Rb8 {[%clk 0:00:10]}  a3 {[%clk 0:00:33]} 45. Ra8+ {[%clk 0:00:08]}  Kb4 {[%clk 0:00:34]} 46. Rb8+ {[%clk 0:00:06]}  Kc3 {[%clk 0:00:34]} 47. Rb1 {[%clk 0:00:03]}  Ra2# {[%clk 0:00:32]} 0-1


[Site "https://www.chess.com"]

[Event "Titled Tuesday Blitz October 12 2021"]
[White "Maly, Alexey"]
[Black "Rozen, Eytan"]
[WhiteFideId "14103184"]
[BlackFideId "2816750"]
[WhiteElo "2294"]
[BlackElo "2115"]
[Result "1-0"]
[Round "07"]
[TimeControl "180+1"]
[Date "2021.10.12"]
[WhiteClock "0:00:42"]
[BlackClock "0:00:02"]

1. d4 {[%clk 0:03:00]}  d5 {[%clk 0:02:55]} 2. c4 {[%clk 0:03:00]}  dxc4 {[%clk 0:02:55]} 3. e3 {[%clk 0:03:00]}  Nf6 {[%clk 0:02:52]} 4. Bxc4 {[%clk 0:03:00]}  e6 {[%clk 0:02:52]} 5. Nf3 {[%clk 0:03:01]}  c5 {[%clk 0:02:52]} 6. O-O {[%clk 0:03:01]}  a6 {[%clk 0:02:52]} 7. b3 {[%clk 0:03:01]}  Nc6 {[%clk 0:02:50]} 8. Bb2 {[%clk 0:03:00]}  Be7 {[%clk 0:02:37]} 9. Qe2 {[%clk 0:02:58]}  cxd4 {[%clk 0:02:34]} 10. Nxd4 {[%clk 0:02:58]}  Bd7 {[%clk 0:02:34]} 11. Nd2 {[%clk 0:02:52]}  O-O {[%clk 0:02:25]} 12. N2f3 {[%clk 0:02:50]}  Qa5 {[%clk 0:01:58]} 13. Nxc6 {[%clk 0:02:40]}  Bxc6 {[%clk 0:01:58]} 14. Ne5 {[%clk 0:02:41]}  Bd5 {[%clk 0:01:50]} 15. Rfd1 {[%clk 0:02:36]}  Rfd8 {[%clk 0:01:48]} 16. a4 {[%clk 0:02:29]}  Bxc4 {[%clk 0:01:43]} 17. Nxc4 {[%clk 0:02:27]}  Qf5 {[%clk 0:01:36]} 18. h3 {[%clk 0:02:21]}  Rac8 {[%clk 0:01:28]} 19. Rxd8+ {[%clk 0:02:16]}  Rxd8 {[%clk 0:01:27]} 20. Rd1 {[%clk 0:02:17]}  Rxd1+ {[%clk 0:01:24]} 21. Qxd1 {[%clk 0:02:18]}  Qd5 {[%clk 0:01:24]} 22. Qxd5 {[%clk 0:02:14]}  Nxd5 {[%clk 0:01:25]} 23. Kf1 {[%clk 0:02:10]}  Bb4 {[%clk 0:01:19]} 24. Ke2 {[%clk 0:02:10]}  f6 {[%clk 0:01:18]} 25. Kd3 {[%clk 0:02:07]}  Kf7 {[%clk 0:01:17]} 26. f3 {[%clk 0:02:02]}  h5 {[%clk 0:01:11]} 27. Ba3 {[%clk 0:01:56]}  Bxa3 {[%clk 0:00:56]} 28. Nxa3 {[%clk 0:01:57]}  Ke7 {[%clk 0:00:56]} 29. g4 {[%clk 0:01:57]}  h4 {[%clk 0:00:45]} 30. Nc4 {[%clk 0:01:56]}  b5 {[%clk 0:00:41]} 31. axb5 {[%clk 0:01:56]}  axb5 {[%clk 0:00:42]} 32. Na3 {[%clk 0:01:51]}  Nc7 {[%clk 0:00:42]} 33. Nc2 {[%clk 0:01:46]}  Kd6 {[%clk 0:00:42]} 34. f4 {[%clk 0:01:45]}  e5 {[%clk 0:00:33]} 35. f5 {[%clk 0:01:39]}  Na6 {[%clk 0:00:21]} 36. b4 {[%clk 0:01:34]}  Kc6 {[%clk 0:00:20]} 37. e4 {[%clk 0:01:28]}  Kd6 {[%clk 0:00:21]} 38. Kc3 {[%clk 0:01:27]}  Nb8 {[%clk 0:00:14]} 39. Ne3 {[%clk 0:01:23]}  Nc6 {[%clk 0:00:14]} 40. Ng2 {[%clk 0:01:23]}  Nd4 {[%clk 0:00:15]} 41. Nxh4 {[%clk 0:01:21]}  Ne2+ {[%clk 0:00:15]} 42. Kd3 {[%clk 0:01:17]}  Nf4+ {[%clk 0:00:15]} 43. Ke3 {[%clk 0:01:16]}  Nxh3 {[%clk 0:00:16]} 44. Nf3 {[%clk 0:01:14]}  Nf4 {[%clk 0:00:15]} 45. g5 {[%clk 0:01:13]}  Nh3 {[%clk 0:00:09]} 46. g6 {[%clk 0:01:11]}  Nf4 {[%clk 0:00:08]} 47. Nh2 {[%clk 0:01:07]}  Ng2+ {[%clk 0:00:08]} 48. Kd2 {[%clk 0:01:04]}  Nf4 {[%clk 0:00:06]} 49. Ng4 {[%clk 0:01:04]}  Ke7 {[%clk 0:00:06]} 50. Ke3 {[%clk 0:01:01]}  Ng2+ {[%clk 0:00:05]} 51. Kd2 {[%clk 0:00:59]}  Nf4 {[%clk 0:00:06]} 52. Ne3 {[%clk 0:00:58]}  Kd6 {[%clk 0:00:06]} 53. Nd1 {[%clk 0:00:57]}  Nh3 {[%clk 0:00:04]} 54. Ke3 {[%clk 0:00:56]}  Nf4 {[%clk 0:00:03]} 55. Kd2 {[%clk 0:00:55]}  Kc6 {[%clk 0:00:03]} 56. Nc3 {[%clk 0:00:54]}  Kb6 {[%clk 0:00:03]} 57. Ke3 {[%clk 0:00:52]}  Kc6 {[%clk 0:00:04]} 58. Nd1 {[%clk 0:00:48]}  Kb6 {[%clk 0:00:04]} 59. Nf2 {[%clk 0:00:48]}  Kc6 {[%clk 0:00:05]} 60. Ng4 {[%clk 0:00:48]}  Ng2+ {[%clk 0:00:05]} 61. Kd2 {[%clk 0:00:48]}  Kd6 {[%clk 0:00:01]} 62. Nxf6 {[%clk 0:00:45]}  Nh4 {[%clk 0:00:02]} 63. Nh5 {[%clk 0:00:43]}  Nf3+ {[%clk 0:00:02]} 64. Ke3 {[%clk 0:00:43]}  Ng5 {[%clk 0:00:02]} 65. Nxg7 {[%clk 0:00:43]}  Ke7 {[%clk 0:00:02]} 66. Nh5 {[%clk 0:00:42]} 1-0


[Site "https://www.chess.com"]

[Event "Titled Tuesday Blitz October 12 2021"]
[White "Mikhalevski, Victor"]
[Black "Karpeshov, Oleg"]
[WhiteFideId "2801914"]
[BlackFideId "4106814"]
[WhiteElo "2577"]
[BlackElo "2354"]
[Result "1-0"]
[Round "07"]
[TimeControl "180+1"]
[Date "2021.10.12"]
[WhiteClock "0:00:12"]
[BlackClock "0:00:17"]

1. d4 {[%clk 0:03:00]}  Nf6 {[%clk 0:02:59]} 2. c4 {[%clk 0:03:00]}  e6 {[%clk 0:02:59]} 3. g3 {[%clk 0:03:00]}  Bb4+ {[%clk 0:02:57]} 4. Nd2 {[%clk 0:02:59]}  O-O {[%clk 0:02:55]} 5. Bg2 {[%clk 0:02:58]}  c5 {[%clk 0:02:47]} 6. Nf3 {[%clk 0:02:57]}  d5 {[%clk 0:02:45]} 7. O-O {[%clk 0:02:54]}  cxd4 {[%clk 0:02:45]} 8. Nxd4 {[%clk 0:02:54]}  Nc6 {[%clk 0:02:45]} 9. Nxc6 {[%clk 0:02:49]}  bxc6 {[%clk 0:02:45]} 10. Nf3 {[%clk 0:02:50]}  Qe7 {[%clk 0:02:39]} 11. Qc2 {[%clk 0:02:47]}  Bd6 {[%clk 0:02:34]} 12. b3 {[%clk 0:02:45]}  e5 {[%clk 0:02:33]} 13. Bb2 {[%clk 0:02:44]}  d4 {[%clk 0:02:30]} 14. Rfe1 {[%clk 0:02:38]}  Rb8 {[%clk 0:02:23]} 15. e3 {[%clk 0:02:37]}  d3 {[%clk 0:02:23]} 16. Qd1 {[%clk 0:02:32]}  e4 {[%clk 0:02:20]} 17. Bxf6 {[%clk 0:02:28]}  gxf6 {[%clk 0:02:19]} 18. Nd4 {[%clk 0:02:20]}  Bd7 {[%clk 0:02:18]} 19. Qh5 {[%clk 0:02:19]}  Qe5 {[%clk 0:02:09]} 20. Qh4 {[%clk 0:02:10]}  f5 {[%clk 0:02:04]} 21. f3 {[%clk 0:01:59]}  c5 {[%clk 0:02:03]} 22. Nb5 {[%clk 0:01:57]}  Bxb5 {[%clk 0:02:01]} 23. cxb5 {[%clk 0:01:54]}  Rfe8 {[%clk 0:02:00]} 24. Rf1 {[%clk 0:01:41]}  c4 {[%clk 0:01:52]} 25. bxc4 {[%clk 0:01:37]}  Bc5 {[%clk 0:01:52]} 26. Qg5+ {[%clk 0:01:29]}  Qg7 {[%clk 0:01:42]} 27. Qxf5 {[%clk 0:01:28]}  Bxe3+ {[%clk 0:01:41]} 28. Kh1 {[%clk 0:01:28]}  Re5 {[%clk 0:01:40]} 29. Qd7 {[%clk 0:01:25]}  Rh5 {[%clk 0:01:26]} 30. Qd6 {[%clk 0:01:20]}  Re8 {[%clk 0:01:18]} 31. fxe4 {[%clk 0:01:19]}  Bd4 {[%clk 0:01:15]} 32. Rad1 {[%clk 0:01:14]}  Be5 {[%clk 0:01:06]} 33. Qxd3 {[%clk 0:01:11]}  Bxg3 {[%clk 0:00:58]} 34. h3 {[%clk 0:01:10]}  Be5 {[%clk 0:00:47]} 35. Rg1 {[%clk 0:01:04]}  Kh8 {[%clk 0:00:47]} 36. Qf3 {[%clk 0:00:58]}  Rg5 {[%clk 0:00:41]} 37. Rd7 {[%clk 0:00:56]}  Rf8 {[%clk 0:00:29]} 38. c5 {[%clk 0:00:52]}  Rg3 {[%clk 0:00:29]} 39. Qf5 {[%clk 0:00:40]}  Rg5 {[%clk 0:00:29]} 40. Qf2 {[%clk 0:00:36]}  Qh6 {[%clk 0:00:23]} 41. Rxf7 {[%clk 0:00:33]}  Rfg8 {[%clk 0:00:22]} 42. Rf3 {[%clk 0:00:30]}  Bg3 {[%clk 0:00:18]} 43. Qe3 {[%clk 0:00:27]}  Be5 {[%clk 0:00:19]} 44. b6 {[%clk 0:00:20]}  Qg6 {[%clk 0:00:20]} 45. Qd2 {[%clk 0:00:13]}  Rxg2 {[%clk 0:00:21]} 46. Qxg2 {[%clk 0:00:12]}  Qxg2+ {[%clk 0:00:17]} 47. Rxg2 {[%clk 0:00:12]}  Rd8 {[%clk 0:00:16]} 48. Rf5 {[%clk 0:00:12]}  Rd1+ {[%clk 0:00:17]} 49. Rg1 {[%clk 0:00:12]} 1-0


[Site "https://www.chess.com"]

[Event "Titled Tuesday Blitz October 12 2021"]
[White "Nogerbek, Kazybek"]
[Black "Korchmar, Vasiliy"]
[WhiteFideId "13710427"]
[BlackFideId "24131750"]
[WhiteElo "2436"]
[BlackElo "2370"]
[Result "1-0"]
[Round "07"]
[TimeControl "180+1"]
[Date "2021.10.12"]
[WhiteClock "0:00:27"]
[BlackClock "0:00:03"]

1. d4 {[%clk 0:03:00]}  Nf6 {[%clk 0:02:59]} 2. c4 {[%clk 0:03:00]}  g6 {[%clk 0:03:00]} 3. Nc3 {[%clk 0:03:01]}  Bg7 {[%clk 0:03:00]} 4. e4 {[%clk 0:03:00]}  d6 {[%clk 0:03:00]} 5. Be2 {[%clk 0:03:01]}  O-O {[%clk 0:03:00]} 6. Be3 {[%clk 0:03:02]}  e5 {[%clk 0:02:58]} 7. d5 {[%clk 0:03:02]}  Na6 {[%clk 0:02:54]} 8. g4 {[%clk 0:02:58]}  Nc5 {[%clk 0:02:53]} 9. f3 {[%clk 0:02:59]}  c6 {[%clk 0:02:48]} 10. h4 {[%clk 0:02:55]}  a5 {[%clk 0:02:42]} 11. h5 {[%clk 0:02:54]}  a4 {[%clk 0:02:39]} 12. Qd2 {[%clk 0:02:52]}  cxd5 {[%clk 0:02:35]} 13. cxd5 {[%clk 0:02:52]}  Qa5 {[%clk 0:02:31]} 14. Nh3 {[%clk 0:02:45]}  Bd7 {[%clk 0:02:13]} 15. Rb1 {[%clk 0:02:43]}  b5 {[%clk 0:02:12]} 16. Nf2 {[%clk 0:02:37]}  b4 {[%clk 0:02:11]} 17. Ncd1 {[%clk 0:02:37]}  Rfc8 {[%clk 0:01:58]} 18. Nd3 {[%clk 0:01:57]}  Ncxe4 {[%clk 0:01:42]} 19. fxe4 {[%clk 0:01:53]}  Nxe4 {[%clk 0:01:43]} 20. Qxb4 {[%clk 0:01:54]}  Qxd5 {[%clk 0:01:43]} 21. Bf3 {[%clk 0:01:47]}  Qxa2 {[%clk 0:01:07]} 22. Bxe4 {[%clk 0:01:35]}  Qxb1 {[%clk 0:01:06]} 23. Nxe5 {[%clk 0:01:30]}  Qa1 {[%clk 0:00:56]} 24. Nxd7 {[%clk 0:01:27]}  a3 {[%clk 0:00:38]} 25. hxg6 {[%clk 0:01:26]}  axb2 {[%clk 0:00:25]} 26. gxf7+ {[%clk 0:01:24]}  Kxf7 {[%clk 0:00:25]} 27. Bd5+ {[%clk 0:01:05]}  Ke8 {[%clk 0:00:16]} 28. Qe4+ {[%clk 0:00:58]}  Be5 {[%clk 0:00:12]} 29. Nxe5 {[%clk 0:00:47]}  b1=Q {[%clk 0:00:12]} 30. Nd3+ {[%clk 0:00:47]}  Kd8 {[%clk 0:00:08]} 31. O-O {[%clk 0:00:29]}  Qxd1 {[%clk 0:00:06]} 32. Bg5+ {[%clk 0:00:28]}  Kc7 {[%clk 0:00:06]} 33. Qe7+ {[%clk 0:00:28]}  Kb8 {[%clk 0:00:03]} 34. Qb7# {[%clk 0:00:27]} 1-0


[Site "https://www.chess.com"]